fUSD/lending_fUSD_20240217
["ID","MTS","AMOUNT","RATE_DAILY","PERIOD"]
[314333655,1708191043835,-150.0,0.00047871,7]
[314333656,1708191043844,-150.0,0.00047872,7]
[314333657,1708191043854,-150.0,0.00047874,7]
[314333658,1708191043863,-989.48310961,0.00047876,7]
[314333659,1708191043872,-250.0,0.00047878,7]
[314333660,1708191043881,-156.0420136,0.00047879,30]
[314333661,1708191043891,-150.0,0.0004788,7]
[314333662,1708191043900,-150.0,0.00047887,7]
[314333663,1708191043909,-500.0,0.00047899,2]
[314333664,1708191043918,-1500.0,0.000479,7]
[314333665,1708191043927,-150.0,0.00047904,7]
[314333666,1708191043936,-150.0,0.00047906,7]
[314333667,1708191043946,-2406.28,0.00047916,120]
[314333668,1708191043955,-150.0,0.00047921,7]
[314333669,1708191043964,-150.0,0.00047921,7]
[314333670,1708191043973,-150.0,0.00047925,7]
[314333671,1708191043985,-150.0,0.00047936,7]
[314333672,1708191043996,-154.78,0.00047945,2]
[314333673,1708191044008,-150.0,0.00047946,7]
[314333674,1708191044019,-28516.84695968,0.00047946,17]
[314333675,1708191044029,-100000.0,0.00047952,15]
[314333676,1708191044039,-150.0,0.00047953,7]
[314333677,1708191044049,-150.0,0.00047956,7]
[314333678,1708191044060,-150.0,0.00047962,7]
[314333679,1708191044070,-1500.0,0.00047963,7]
[314333680,1708191044080,-150.5,0.0004797,30]
[314333681,1708191044089,-192.29,0.0004797,120]
[314333682,1708191044099,-150.5,0.0004797,120]
[314333683,1708191044108,-150.0,0.00047977,7]
[314333684,1708191044117,-150.5,0.0004798,30]
[314333685,1708191044126,-150.5,0.0004798,120]
[314333686,1708191044136,-150.5,0.0004798,120]
[314333687,1708191044148,-160.70793195,0.00047982,30]
[314333688,1708191044159,-150.01,0.00047989,2]
[314333689,1708191044167,-3317.68767406,0.00047989,2]
[314333690,1708191044177,-150.5,0.0004799,30]
[314333691,1708191044189,-150.5,0.0004799,120]
[314333692,1708191044200,-150.5,0.0004799,120]
[314333693,1708191044209,-231.21,0.0004799,120]
[314333694,1708191044219,-1143.86278573,0.00047997,2]
[314333695,1708191044231,-1189.15282441,0.00047997,4]
[314333696,1708191044241,-15863.16807961,0.00047998,7]
[314333697,1708191044250,-1046.2,0.00047998,60]
[314333698,1708191044260,-2322.4597562,0.00047998,2]
[314333699,1708191044271,-2977.9640081,0.00047998,2]
[314333700,1708191044282,-1293.6036557,0.00047998,2]
[314333701,1708191044291,-1516900.4264862,0.00048,30]
[314333702,1708191044509,-96596.98088524,0.00048,30]
[314333703,1708191044518,-500.0,0.00048,120]
[314333704,1708191044528,-500.0,0.00048,14]
[314333705,1708191044538,-2000.0,0.00048,7]
[314333706,1708191044550,-200.0,0.00048,7]
[314333707,1708191044559,-2000.0,0.00048,7]
[314333708,1708191044571,-200.0,0.00048,7]
[314333709,1708191044581,-183.0,0.00048,90]
[314333710,1708191044589,-2000.0,0.00048,7]
[314333711,1708191044599,-200.0,0.00048,7]
[314333712,1708191044610,-160.0,0.00048,90]
[314333713,1708191044620,-89178.5198288,0.00048031,2]
[314333714,1708191044633,-150.79107751,0.00048064,30]
[314333715,1708191044642,-177.43,0.00048096,2]
[314333716,1708191044653,-178.83894219,0.00048096,2]
[314333717,1708191044823,-5000.0,0.00048106,4]
[314333718,1708191044834,-152.0,0.00048123,30]
[314333719,1708191044844,-156.0420136,0.00048182,30]
[314333720,1708191044853,-200.0,0.000482,23]
[314333721,1708191044863,-152.0,0.00048201,6]
[314333722,1708191044872,-942.38,0.0004827,2]
[314333723,1708191044881,-1167.17173947,0.00048314,2]
[314333724,1708191044891,-205.0,0.00048318,13]
[314333725,1708191044900,-5000.0,0.00048356,4]
[314333726,1708191044910,-500.0,0.00048426,7]
[314333727,1708191044919,-945.72418267,0.00048426,2]
[314333728,1708191044929,-2000.0,0.0004848,7]
[314333729,1708191044938,-200.0,0.0004848,7]
[314333730,1708191044948,-677.58166962,0.0004848,7]
[314333731,1708191044957,-200.0,0.0004848,7]
[314333732,1708191044967,-2000.0,0.0004848,7]
[314333733,1708191044977,-200.0,0.0004848,7]
[314333734,1708191044988,-156.0420136,0.0004849,30]
[314333735,1708191044997,-1000.0,0.000485,2]
[314333736,1708191045006,-151.60150734,0.00048572,30]
[314333737,1708191045015,-150.92656419,0.00048595,30]
[314333738,1708191045025,-5000.0,0.00048606,4]
[314333739,1708191045034,-177.43,0.00048644,2]
[314333740,1708191045044,-152.0,0.00048671,30]
[314333741,1708191045054,-150.79107751,0.00048745,30]
[314333742,1708191045063,-4051.72639474,0.0004875,25]
[314333743,1708191045072,-4771.34182027,0.00048751,2]
[314333744,1708191045081,-150.0,0.00048798,60]
[314333745,1708191045092,-5000.0,0.00048856,4]
[314333746,1708191045103,-1518.79173551,0.00048864,5]
[314333747,1708191045114,-150.92656419,0.00048884,30]
[314333748,1708191045124,-1000.0,0.00048888,2]
[314333749,1708191045134,-152.735015,0.00048898,30]
[314333750,1708191045144,-153.16663299,0.00048936,40]
[314333751,1708191045154,-2000.0,0.00048965,7]
[314333752,1708191045163,-200.0,0.00048965,7]
[314333753,1708191045173,-200.0,0.00048965,7]
[314333754,1708191045181,-2000.0,0.00048965,7]
[314333755,1708191045191,-200.0,0.00048965,7]
[314333756,1708191045200,-750.0,0.00048974,7]
[314333757,1708191045209,-156.66,0.0004899,120]
[314333758,1708191045218,-152.49751534,0.00048999,60]
[314333759,1708191045228,-1050790.51986012,0.00048999,2]
[314333760,1708191045242,-260462.69840913,0.00048999,2]
[314333761,1708191045276,-102343.8019643,0.00048999,2]
[314333762,1708191045289,-1011.42791006,0.00048999,2]
[314333764,1708191045693,-210.24,0.000418,2]
[314333766,1708191045702,-100411.74496649,0.00048999,2]
[314333767,1708191045714,-1768.45637484,0.00048999,2]
[314333768,1708191045725,-1544.42,0.00048999,2]
[314333770,1708191045741,-28199.6605921,0.00048999,2]
[314333773,1708191045768,-1382.21320004,0.00048999,2]
[314333777,1708191045845,-4441.72864517,0.00048999,2]
[314333778,1708191045873,-2398.19929894,0.00048999,2]
[314333779,1708191046094,-150.0,0.00044579,2]
[314333780,1708191046102,-150.0,0.00044774,2]
[314333781,1708191046111,-150.0,0.00044774,2]
[314333782,1708191046120,-150.0,0.00044851,2]
[314333783,1708191046129,-150.0,0.00044958,2]
[314333784,1708191046138,-150.0,0.00045086,2]
[314333785,1708191046147,-150.0,0.00045091,2]
[314333786,1708191046156,-150.0,0.00045125,2]
[314333787,1708191046165,-150.0,0.00045326,2]
[314333788,1708191046174,-150.0,0.00045661,2]
[314333789,1708191046183,-150.0,0.00045686,2]
[314333791,1708191046192,-150.0,0.0004589,2]
[314333793,1708191046202,-150.0,0.00045891,2]
[314333795,1708191046211,-150.0,0.00045976,2]
[314333796,1708191046220,-150.0,0.00046109,2]
[314333797,1708191046229,-150.0,0.00046324,2]
[314333798,1708191046239,-150.0,0.00046361,2]
[314333799,1708191046248,-150.0,0.00046389,2]
[314333800,1708191046257,-150.0,0.00046773,7]
[314333801,1708191046267,-150.0,0.00046901,7]
[314333802,1708191046276,-150.0,0.00046959,7]
[314333803,1708191046285,-150.0,0.00047197,7]
[314333804,1708191046295,-150.0,0.00047202,7]
[314333805,1708191046304,-150.0,0.00047412,7]
[314333806,1708191046313,-150.0,0.00047649,7]
[314333808,1708191046322,-150.0,0.00047797,7]
[314333809,1708191046332,-150.0,0.00047829,7]
[314333811,1708191046341,-5376.63776563,0.00048999,2]
[314333817,1708191046405,-19.12759371,0.00048999,2]
[314333818,1708191046549,-150.0,0.00044736,2]
[314333819,1708191046558,-150.0,0.00045166,2]
[314333820,1708191046567,-150.0,0.00045351,2]
[314333821,1708191046576,-150.0,0.0004541,2]
[314333822,1708191046586,-150.0,0.00045669,2]
[314333823,1708191046596,-150.0,0.00047873,7]
[314333824,1708191046606,-307.28672306,0.00048999,2]
[314333825,1708191047047,-150.0,0.00044486,2]
[314333826,1708191047057,-150.0,0.00044528,2]
[314333827,1708191047066,-150.0,0.0004475,2]
[314333828,1708191047075,-150.0,0.00044776,2]
[314333829,1708191047084,-150.0,0.00044797,2]
[314333830,1708191047093,-150.0,0.00044816,2]
[314333831,1708191047103,-150.0,0.00044817,2]
[314333832,1708191047111,-150.0,0.00045299,2]
[314333833,1708191047121,-150.0,0.00045477,2]
[314333834,1708191047130,-150.0,0.00045491,2]
[314333835,1708191047139,-150.0,0.00045533,2]
[314333836,1708191047149,-150.0,0.00045547,2]
[314333837,1708191047158,-150.0,0.00045557,2]
[314333838,1708191047167,-118.08284223,0.00045677,2]
[314333839,1708191047181,-31.91715777,0.00045677,2]
[314333840,1708191047191,-150.0,0.00045706,2]
[314333841,1708191047200,-150.0,0.00045726,2]
[314333842,1708191047210,-150.0,0.00045763,2]
[314333843,1708191047219,-150.0,0.00045776,2]
[314333844,1708191047229,-150.0,0.00045884,2]
[314333845,1708191047239,-150.0,0.00046022,2]
[314333846,1708191047248,-150.0,0.00046073,2]
[314333847,1708191047257,-150.0,0.00046154,2]
[314333848,1708191047266,-150.0,0.00046211,2]
[314333849,1708191047275,-150.0,0.00046228,2]
[314333850,1708191047284,-150.0,0.00046237,2]
[314333851,1708191047293,-150.0,0.00046254,2]
[314333852,1708191047302,-150.0,0.00046317,2]
[314333853,1708191047311,-150.0,0.00046371,2]
[314333854,1708191047320,-150.0,0.00046386,2]
[314333855,1708191047329,-150.0,0.00046456,2]
[314333856,1708191047338,-150.0,0.00046481,2]
[314333857,1708191047346,-150.0,0.00046548,2]
[314333858,1708191047355,-150.0,0.00046618,7]
[314333859,1708191047364,-150.0,0.00046725,7]
[314333860,1708191047372,-150.0,0.00046794,7]
[314333861,1708191047382,-150.0,0.00046864,7]
[314333862,1708191047391,-150.0,0.00046874,7]
[314333863,1708191047400,-150.0,0.00046905,7]
[314333864,1708191047410,-150.0,0.00047063,7]
[314333865,1708191047419,-150.0,0.00047075,7]
[314333866,1708191047428,-144.17203994,0.00047123,7]
[314333867,1708191047450,-5.82796006,0.00047123,7]
[314333868,1708191047459,-150.0,0.0004725,7]
[314333869,1708191047472,-150.0,0.0004727,7]
[314333870,1708191047482,-53.18143666,0.00047401,7]
[314333871,1708191081102,1263.2162,0.000226,2]
[314333874,1708192111303,550.0,0.00025,3]
[314333875,1708192134795,-155.0,0.00024999,2]
[314333876,1708192134834,-600.0,0.00027,3]
[314333877,1708192134877,-650.0,0.00029,3]
[314333878,1708192134915,-278.8549,0.00029699,3]
[314333879,1708192134960,-153.61753549,0.000298,2]
[314333880,1708192135000,-150.0,0.00029899,2]
[314333881,1708192135036,-155.6126,0.000299,2]
[314333882,1708192135250,-13100.27596574,0.000299,2]
[314333884,1708192231993,-200.28543471,0.0002975,2]
[314333885,1708192232003,-174.9766712,0.00029899,2]
[314333886,1708192232014,-6780.72104203,0.000299,2]
[314333887,1708192235540,-6384.31143969,0.000299,2]
[314333888,1708192235554,-7382.376725,0.000299,2]
[314333889,1708192235570,-1651.80160239,0.000299,2]
[314333890,1708192235585,-3710.71199057,0.000299,2]
[314333917,1708192238260,-60989.80123458,0.000299,2]
[314333918,1708192238270,-500.0,0.000299,2]
[314333919,1708192238279,-6956.2157,0.000299,2]
[314333920,1708192238288,-365.34446705,0.000299,2]
[314333921,1708192238298,-456266.95772415,0.0003,2]
[314333922,1708192238306,-1861.66346308,0.0003,4]
[314333923,1708192238316,-700.0,0.00031,3]
[314333924,1708192238325,-153.61753539,0.00031092,2]
[314333925,1708192238334,-153.61753539,0.00032384,2]
[314333926,1708192238343,-499.99,0.00032384,2]
[314333927,1708192238352,-1489.57576861,0.00032615,6]
[314333928,1708192238362,-100000.0,0.00033,7]
[314333929,1708192238371,-750.0,0.00033,3]
[314333930,1708192238380,-620.87,0.00033308,2]
[314333931,1708192238390,-153.61753539,0.00033676,2]
[314333933,1708192238399,-250.0,0.00034641,111]
[314333935,1708192238408,-257.41,0.00034709,2]
[314333937,1708192238417,-1140.02711319,0.000349,2]
[314333939,1708192238426,-1140.027113,0.000349,2]
[314333941,1708192238436,-1140.027113,0.000349,2]
[314333943,1708192238445,-1140.027113,0.000349,2]
[314333945,1708192238454,-153.61753539,0.00034969,2]
[314333947,1708192238464,-800.0,0.00035,3]
[314333949,1708192238474,-250.0,0.00035151,2]
[314333951,1708192238484,-250.0,0.0003527,2]
[314333953,1708192238493,-1489.57576861,0.0003533,7]
[314333955,1708192238502,-23900.0,0.00035349,2]
[314333957,1708192238511,-620.87,0.00035572,2]
[314333959,1708192238520,-150.0,0.00035856,2]
[314333961,1708192238529,-500.0,0.0003596,2]
[314333963,1708192238538,-1140.027113,0.00036216,2]
[314333965,1708192238547,-150.0,0.00036228,2]
[314333967,1708192238556,-153.61753539,0.00036261,2]
[314333969,1708192238565,-2112.98447387,0.00036301,30]
[314333971,1708192238574,-12720.4088854,0.00036389,2]
[314333973,1708192238583,-12720.40888536,0.00036389,2]
[314333975,1708192238592,-12720.40888536,0.00036389,2]
[314333977,1708192238602,-167.0,0.00036475,2]
[314333978,1708192238611,-200.0,0.00036609,120]
[314333981,1708192238620,-2000.0,0.00036774,2]
[314333983,1708192238630,-500.0,0.00036952,2]
[314333985,1708192238639,-850.0,0.00037,3]
[314333987,1708192238649,-208.43,0.0003702,2]
[314333989,1708192238659,-12720.40888536,0.00037047,2]
[314333990,1708192238670,-2167.5,0.00037484,2]
[314333992,1708192238680,-153.61753539,0.00037553,2]
[314333995,1708192238692,-485.58,0.00037678,2]
[314333997,1708192238701,-1140.027113,0.00037795,2]
[314333998,1708192238711,-620.87,0.00037836,2]
[314334000,1708192238721,-1489.57576861,0.00038045,8]
[314334002,1708192238730,-2271.0,0.000382,3]
[314334005,1708192238739,-12709.0,0.000382,3]
[314334007,1708192238748,-288.8,0.00038356,15]
[314334009,1708192238758,-154.78,0.00038356,2]
[314334011,1708192238767,-48386.0,0.000385,15]
[314334013,1708192238776,-153.61753539,0.00038845,2]
[314334015,1708192238786,-900.0,0.00039,3]
[314334016,1708192238796,-164.13,0.00039198,2]
[314334019,1708192238809,-242.06,0.0003926,2]
[314334021,1708192238819,-1140.027113,0.00039374,2]
[314334023,1708192238830,-12720.40888536,0.00039429,2]
[314334025,1708192238839,-1101.01616078,0.0003988,2]
[314334026,1708192238848,-177.43,0.00039939,2]
[314334029,1708192238858,-155.0,0.0004,4]
[314334031,1708192238867,-772.61095846,0.0004,8]
[314334032,1708192238877,-200.0,0.0004,30]
[314334035,1708192238887,-800.54171351,0.0004,4]
[314334036,1708192238896,-795.2,0.0004,2]
[314334039,1708192238905,-620.87,0.000401,2]
[314334040,1708192238914,-153.61753539,0.00040137,2]
[314334042,1708192238923,-200.0,0.000402,30]
[314334044,1708192238933,-287.63546888,0.000404,30]
[314334046,1708192238943,-177.43,0.00040487,2]
[314334048,1708192238952,-180.0,0.00040647,2]
[314334051,1708192238962,-242.06,0.00040733,2]
[314334052,1708192238972,-1489.57576861,0.0004076,10]
[314334054,1708192238981,-1000.0,0.00040949,2]
[314334056,1708192238990,-1140.027113,0.00040953,5]
[314334059,1708192238999,-950.0,0.00041,3]
[314334061,1708192239009,-9681.87582824,0.00041025,10]
[314334063,1708192239018,-88029.36124,0.00041025,7]
[314334065,1708192239027,-177.43,0.00041035,2]
[314334067,1708192239036,-463.0,0.00041052,120]
[314334069,1708192239045,-427.33535457,0.00041052,120]
[314334071,1708192239054,-637.97003882,0.00041052,2]
[314334073,1708192239063,-150.0,0.00041052,30]
[314334075,1708192239071,-151.5694382,0.00041052,60]
[314334077,1708192239080,-2500.0,0.00041095,2]
[314334079,1708192239089,-198.42759781,0.00041095,7]
[314334081,1708192239098,-160.19964425,0.00041095,7]
[314334083,1708192239107,-280.34184015,0.00041095,7]
[314334085,1708192239116,-209.16909667,0.00041095,7]
[314334087,1708192239125,-1000.0,0.00041096,12]
[314334089,1708192239133,-1000.0,0.00041096,12]
[314334091,1708192239142,-1000.0,0.00041096,12]
[314334093,1708192239151,-1000.0,0.00041096,12]
[314334095,1708192239161,-1000.0,0.00041096,12]
[314334096,1708192239170,-1000.0,0.00041096,12]
[314334099,1708192239179,-1000.0,0.00041096,12]
[314334100,1708192239189,-183.0,0.00041096,2]
[314334102,1708192239198,-164.61575062,0.00041209,30]
[314334104,1708192239207,-238.99199432,0.00041245,30]
[314334107,1708192239216,-151.60150734,0.00041377,30]
[314334109,1708192239226,-154.67,0.00041382,2]
[314334111,1708192239234,-151.60150734,0.00041382,30]
[314334113,1708192239243,-153.61753539,0.00041429,2]
[314334115,1708192239252,-150.0,0.00041465,7]
[314334116,1708192239261,-150.0,0.00041465,7]
[314334118,1708192239270,-150.0,0.00041465,7]
[314334120,1708192239280,-152.735015,0.00041486,30]
[314334122,1708192239289,-164.61575062,0.000415,30]
[314334125,1708192239298,-177.43,0.00041583,2]
[314334126,1708192239307,-164.61575062,0.00041617,30]
[314334128,1708192239316,-151.60150734,0.00041632,30]
[314334130,1708192239326,-12720.40888536,0.00041811,4]
[314334132,1708192239336,-156.83081342,0.00041834,30]
[314334134,1708192239344,-150.0,0.00041835,7]
[314334136,1708192239353,-150.0,0.00041835,7]
[314334138,1708192239362,-150.0,0.00041835,7]
[314334140,1708192239371,-151.60150734,0.00041864,30]
[314334142,1708192239381,-965.47916117,0.00042,7]
[314334144,1708192239390,-338.5789,0.00042,59]
[314334146,1708192239399,-178.71,0.00042,2]
[314334149,1708192239408,-288.8,0.00042092,15]
[314334151,1708192239417,-151.60150734,0.00042095,30]
[314334152,1708192239426,-177.43,0.00042131,2]
[314334154,1708192239435,-150.0,0.00042205,7]
[314334156,1708192239444,-150.0,0.00042205,7]
[314334158,1708192239453,-150.0,0.00042205,7]
[314334160,1708192239461,-242.06,0.00042205,2]
[314334162,1708192239471,-164.61575062,0.00042247,30]
[314334164,1708192239480,-150.92656419,0.00042302,30]
[314334167,1708192239490,-620.87,0.00042364,2]
[314334168,1708192239499,-205.0,0.00042398,10]
[314334171,1708192239508,-167.0,0.00042495,2]
[314334172,1708192239517,-9681.87582824,0.00042522,11]
[314334175,1708192239526,-1140.027113,0.00042532,5]
[314334176,1708192239535,-150.0,0.00042574,7]
[314334178,1708192239545,-150.0,0.00042574,7]
[314334180,1708192239554,-157.09408925,0.00042576,30]
[314334182,1708192239564,-1000.0,0.00042649,2]
[314334185,1708192239573,-177.43,0.00042679,2]
[314334187,1708192239582,-151.60150734,0.00042685,30]
[314334189,1708192239592,-9681.87582824,0.0004269,11]
[314334191,1708192239601,-1000.0,0.0004269,120]
[314334193,1708192239610,-153.14929977,0.000427,16]
[314334195,1708192239619,-4051.72639474,0.000427,17]
[314334197,1708192239628,-153.61753539,0.00042721,2]
[314334199,1708192239638,-151.60150734,0.0004276,30]
[314334201,1708192239647,-29045.6274847,0.0004279,11]
[314334202,1708192239657,-1212.91218193,0.000428,4]
[314334204,1708192239666,-3007.18,0.000428,4]
[314334206,1708192239675,-3007.18,0.000428,4]
[314334208,1708192239685,-3007.18,0.000428,4]
[314334210,1708192239695,-3007.18,0.000428,4]
[314334211,1708192239704,-3007.18,0.000428,4]
[314334212,1708192239713,-3007.18,0.000428,4]
[314334213,1708192239722,-3007.18,0.000428,4]
[314334214,1708192239731,-3007.18,0.000428,4]
[314334215,1708192239741,-3007.18,0.000428,4]
[314334216,1708192239750,-3007.18,0.000428,4]
[314334217,1708192239760,-3007.18,0.000428,4]
[314334218,1708192239769,-3007.18,0.000428,4]
[314334220,1708192239779,-3007.18,0.000428,4]
[314334222,1708192239788,-3007.18,0.000428,4]
[314334224,1708192239797,-3007.18,0.000428,4]
[314334226,1708192239809,-3007.18,0.000428,4]
[314334228,1708192239819,-3007.18,0.000428,4]
[314334230,1708192239827,-3007.18,0.000428,4]
[314334232,1708192239837,-3007.18,0.000428,4]
[314334234,1708192239847,-3007.18,0.000428,4]
[314334236,1708192239856,-153.97,0.000428,4]
[314334238,1708192239865,-153.97,0.000428,4]
[314334240,1708192239874,-153.97,0.000428,4]
[314334242,1708192239885,-150.79107751,0.00042869,30]
[314334244,1708192239895,-158.23203844,0.00042899,30]
[314334246,1708192239904,-150.0,0.00042944,7]
[314334248,1708192239913,-150.0,0.00042944,7]
[314334250,1708192239922,-155.33,0.00042949,2]
[314334252,1708192239931,-1000.0,0.00043,3]
[314334254,1708192239941,-323.0,0.000432,17]
[314334256,1708192239950,-177.43,0.00043227,2]
[314334258,1708192239959,-151.60150734,0.00043249,30]
[314334260,1708192239968,-4051.72639474,0.00043373,18]
[314334262,1708192239977,-164.61575062,0.00043462,30]
[314334264,1708192239986,-1489.57576861,0.00043475,11]
[314334266,1708192239995,-153.14929974,0.00043517,20]
[314334268,1708192240005,-205.0,0.00043572,10]
[314334270,1708192240014,-151.60150734,0.00043581,30]
[314334272,1708192240023,-155.33,0.00043665,2]
[314334274,1708192240032,-242.06,0.00043677,2]
[314334276,1708192240042,-177.43,0.00043775,2]
[314334278,1708192240051,-150.92656419,0.00043805,30]
[314334280,1708192240060,-9681.87582824,0.00043841,11]
[314334282,1708192240070,-88029.36124,0.00043841,10]
[314334284,1708192240079,-10915.20716652,0.00043851,13]
[314334286,1708192240088,-38727.503313,0.00043888,11]
[314334288,1708192240097,-48409.3791412,0.00043898,11]
[314334290,1708192240106,-88029.36124,0.00043898,10]
[314334292,1708192240116,-250.0,0.00043907,7]
[314334294,1708192240125,-57966.62677786,0.00043908,13]
[314334296,1708192240134,-42056.17874038,0.00043908,14]
[314334298,1708192240144,-19363.7516565,0.0004399,11]
[314334300,1708192240153,-184.70027693,0.00043997,2]
[314334302,1708192240162,-46000.0,0.00044,30]
[314334304,1708192240171,-153.61753539,0.00044014,2]
[314334306,1708192240180,-4051.72639474,0.00044045,19]
[314334308,1708192240189,-9681.87582824,0.0004409,11]
[314334310,1708192240198,-2000.0,0.000441,2]
[314334312,1708192240207,-1140.027113,0.00044111,5]
[314334314,1708192240217,-12720.40888536,0.00044193,6]
[314334315,1708192240226,-200.0,0.000442,18]
[314334318,1708192240235,-177.43,0.00044323,2]
[314334320,1708192240245,-153.14929974,0.00044334,23]
[314334322,1708192240254,-150.92656419,0.00044367,30]
[314334324,1708192240263,-151.60150734,0.00044367,30]
[314334326,1708192240273,-155.33,0.0004438,2]
[314334328,1708192240282,-500.0,0.00044455,7]
[314334330,1708192240292,-151.60150734,0.00044552,30]
[314334332,1708192240301,-150.92656419,0.00044589,30]
[314334334,1708192240310,-164.61575062,0.00044605,30]
[314334336,1708192240321,-620.87,0.00044628,2]
[314334338,1708192240330,-164.61575062,0.0004467,30]
[314334340,1708192240339,-4051.72639474,0.00044718,19]
[314334342,1708192240348,-205.0,0.00044745,10]
[314334344,1708192240357,-152.735015,0.00044795,30]
[314334346,1708192240367,-177.43,0.00044871,2]
[314334348,1708192240376,-164.61575062,0.00044911,30]
[314334350,1708192240385,-151.0,0.00044936,7]
[314334351,1708192240394,-48409.3791412,0.0004498,11]
[314334354,1708192240404,-204.74,0.0004499,10]
[314334356,1708192240413,-170.61,0.0004499,10]
[314334358,1708192240422,-853.09,0.0004499,10]
[314334360,1708192240431,-9681.87582824,0.0004499,11]
[314334362,1708192240440,-88029.36124,0.0004499,10]
[314334364,1708192240449,-447.52311601,0.00045,4]
[314334366,1708192240458,-20009.71896797,0.00045,120]
[314334368,1708192240467,-404.92800675,0.00045,4]
[314334370,1708192240477,-1050.0,0.00045,3]
[314334373,1708192240486,-750.0,0.00045003,7]
[314334375,1708192240495,-155.33,0.00045096,2]
[314334377,1708192240504,-3242.57492414,0.00045107,4]
[314334379,1708192240513,-242.06,0.00045149,2]
[314334381,1708192240522,-153.14929974,0.00045151,26]
[314334383,1708192240531,-200.0,0.000452,20]
[314334385,1708192240540,-153.61753539,0.00045306,2]
[314334387,1708192240551,-5000.0,0.00045358,4]
[314334389,1708192240560,-4051.72639474,0.00045391,20]
[314334391,1708192240570,-177.43,0.00045419,2]
[314334393,1708192240579,-152.735015,0.0004547,30]
[314334396,1708192240588,-151.0,0.00045484,30]
[314334398,1708192240598,-1000.0,0.00045551,7]
[314334400,1708192240607,-151.60150734,0.00045564,30]
[314334402,1708192240617,-5000.0,0.00045607,4]
[314334404,1708192240626,-150.92656419,0.00045609,30]
[314334406,1708192240635,-1140.027113,0.00045689,5]
[314334408,1708192240644,-164.61575062,0.00045783,30]
[314334410,1708192240653,-155.33,0.00045812,2]
[314334412,1708192240662,-288.8,0.00045828,15]
[314334414,1708192240671,-9681.87582824,0.00045847,12]
[314334416,1708192240680,-5000.0,0.00045857,4]
[314334418,1708192240689,-150.79107751,0.0004589,30]
[314334420,1708192240698,-360.0,0.00045891,12]
[314334422,1708192240707,-360.0,0.00045891,12]
[314334424,1708192240716,-360.0,0.00045891,12]
[314334426,1708192240724,-360.0,0.00045891,12]
[314334427,1708192240734,-360.0,0.00045891,12]
[314334429,1708192240742,-360.0,0.00045891,12]
[314334431,1708192240752,-205.0,0.00045918,13]
[314334433,1708192240761,-177.43,0.00045967,2]
[314334435,1708192240770,-153.14929974,0.00045968,29]
[314334437,1708192240779,-4000.0,0.00046,3]
[314334439,1708192240789,-151.83299161,0.00046,2]
[314334441,1708192240799,-150.0,0.00046,2]
[314334443,1708192240811,-9681.87582824,0.00046017,12]
[314334445,1708192240821,-151.0,0.00046032,30]
[314334447,1708192240830,-4051.72639474,0.00046064,21]
[314334449,1708192240840,-1250.0,0.00046099,7]
[314334451,1708192240850,-5000.0,0.00046107,4]
[314334453,1708192240859,-38727.503313,0.0004618,12]
[314334455,1708192240868,-9681.87582824,0.0004619,12]
[314334457,1708192240877,-1489.57576861,0.0004619,12]
[314334459,1708192240887,-2954.25,0.00046199,2]
[314334462,1708192240898,-3610.75,0.00046199,2]
[314334464,1708192240907,-200.0,0.000462,21]